[Event "Titled Tuesday Blitz December 27 Early 2022"]
[White "Gurevich, Dmitry"]
[Black "Danaci, Ege"]
[WhiteFideId "2000407"]
[BlackFideId "34506748"]
[WhiteElo "2393"]
[BlackElo "2088"]
[Result "1-0"]
[Round "02"]
[TimeControl "180+2"]
[Date "2022.12.27"]
[WhiteClock "0:00:13"]
[BlackClock "0:00:03"]

1. d4 {[%clk 0:03:00]}  Nf6 {[%clk 0:02:55]} 2. c4 {[%clk 0:03:00]}  g6 {[%clk 0:02:53]} 3. Nc3 {[%clk 0:02:59]}  Bg7 {[%clk 0:02:54]} 4. e4 {[%clk 0:02:59]}  O-O {[%clk 0:02:53]} 5. Nf3 {[%clk 0:02:59]}  d6 {[%clk 0:02:53]} 6. Be2 {[%clk 0:02:59]}  e5 {[%clk 0:02:50]} 7. O-O {[%clk 0:02:59]}  exd4 {[%clk 0:02:50]} 8. Nxd4 {[%clk 0:02:58]}  Re8 {[%clk 0:02:51]} 9. f3 {[%clk 0:02:58]}  Nc6 {[%clk 0:02:51]} 10. Be3 {[%clk 0:02:57]}  Nh5 {[%clk 0:02:50]} 11. Qd2 {[%clk 0:02:56]}  Nf4 {[%clk 0:02:50]} 12. Rad1 {[%clk 0:02:55]}  Nxe2+ {[%clk 0:02:41]} 13. Qxe2 {[%clk 0:02:50]}  Ne5 {[%clk 0:02:32]} 14. b3 {[%clk 0:02:41]}  Bd7 {[%clk 0:02:24]} 15. Kh1 {[%clk 0:02:34]}  Nc6 {[%clk 0:02:15]} 16. Qd2 {[%clk 0:02:30]}  Nxd4 {[%clk 0:01:42]} 17. Bxd4 {[%clk 0:02:29]}  Bc6 {[%clk 0:01:14]} 18. b4 {[%clk 0:02:23]}  b6 {[%clk 0:00:38]} 19. a4 {[%clk 0:02:16]}  Bf8 {[%clk 0:00:37]} 20. b5 {[%clk 0:02:04]}  Bb7 {[%clk 0:00:37]} 21. Nd5 {[%clk 0:01:48]}  Bxd5 {[%clk 0:00:37]} 22. cxd5 {[%clk 0:01:47]}  a6 {[%clk 0:00:36]} 23. Bb2 {[%clk 0:01:39]}  axb5 {[%clk 0:00:36]} 24. Qc3 {[%clk 0:01:36]}  f6 {[%clk 0:00:35]} 25. axb5 {[%clk 0:01:31]}  Bg7 {[%clk 0:00:34]} 26. Rc1 {[%clk 0:01:28]}  Re7 {[%clk 0:00:35]} 27. Qc4 {[%clk 0:01:21]}  Qd7 {[%clk 0:00:22]} 28. Qc6 {[%clk 0:01:16]}  Ra2 {[%clk 0:00:20]} 29. Bd4 {[%clk 0:01:08]}  Qd8 {[%clk 0:00:16]} 30. h3 {[%clk 0:01:01]}  Ra4 {[%clk 0:00:15]} 31. Rc4 {[%clk 0:00:59]}  Rxc4 {[%clk 0:00:14]} 32. Qxc4 {[%clk 0:00:59]}  Qd7 {[%clk 0:00:11]} 33. Ra1 {[%clk 0:00:55]}  h5 {[%clk 0:00:11]} 34. Ra8+ {[%clk 0:00:52]}  Kh7 {[%clk 0:00:11]} 35. g4 {[%clk 0:00:43]}  hxg4 {[%clk 0:00:10]} 36. hxg4 {[%clk 0:00:42]}  f5 {[%clk 0:00:11]} 37. Bxg7 {[%clk 0:00:25]}  Kxg7 {[%clk 0:00:11]} 38. Qd4+ {[%clk 0:00:20]}  Kh6 {[%clk 0:00:06]} 39. Qf6 {[%clk 0:00:17]}  fxg4 {[%clk 0:00:03]} 40. Rh8+ {[%clk 0:00:15]}  Rh7 {[%clk 0:00:03]} 41. Qh4+ {[%clk 0:00:13]} 1-0


[Site "https://www.chess.com"]

[Event "Titled Tuesday Blitz December 27 Early 2022"]
[White "Hnydiuk, Aleksander"]
[Black "Wagner, Dennis"]
[WhiteFideId "1109057"]
[BlackFideId "24650684"]
[WhiteElo "2363"]
[BlackElo "2595"]
[Result "1-0"]
[Round "02"]
[TimeControl "180+2"]
[Date "2022.12.27"]
[WhiteClock "0:00:09"]
[BlackClock "0:00:06"]

1. e4 {[%clk 0:03:00]}  c5 {[%clk 0:02:59]} 2. Nf3 {[%clk 0:03:00]}  d6 {[%clk 0:02:59]} 3. d4 {[%clk 0:03:00]}  cxd4 {[%clk 0:03:00]} 4. Nxd4 {[%clk 0:03:00]}  Nf6 {[%clk 0:03:01]} 5. Nc3 {[%clk 0:03:01]}  a6 {[%clk 0:03:01]} 6. Be3 {[%clk 0:03:01]}  e5 {[%clk 0:03:01]} 7. Nb3 {[%clk 0:03:00]}  Be7 {[%clk 0:03:00]} 8. Qd2 {[%clk 0:03:00]}  Ng4 {[%clk 0:02:54]} 9. g3 {[%clk 0:02:56]}  Nxe3 {[%clk 0:02:52]} 10. Qxe3 {[%clk 0:02:55]}  O-O {[%clk 0:02:51]} 11. O-O-O {[%clk 0:02:54]}  Be6 {[%clk 0:02:48]} 12. Kb1 {[%clk 0:02:51]}  Nd7 {[%clk 0:02:46]} 13. f4 {[%clk 0:02:46]}  b5 {[%clk 0:02:42]} 14. Nd5 {[%clk 0:02:41]}  Bxd5 {[%clk 0:02:32]} 15. Rxd5 {[%clk 0:02:40]}  Nb6 {[%clk 0:02:29]} 16. Rd1 {[%clk 0:02:36]}  Qc7 {[%clk 0:02:29]} 17. Bd3 {[%clk 0:02:19]}  Nc4 {[%clk 0:02:26]} 18. Qe2 {[%clk 0:02:18]}  a5 {[%clk 0:02:24]} 19. c3 {[%clk 0:02:07]}  a4 {[%clk 0:02:19]} 20. Bxc4 {[%clk 0:02:07]}  bxc4 {[%clk 0:02:18]} 21. Nd2 {[%clk 0:02:07]}  Rfc8 {[%clk 0:01:58]} 22. a3 {[%clk 0:02:07]}  Rab8 {[%clk 0:01:58]} 23. Nf1 {[%clk 0:02:07]}  Qb7 {[%clk 0:01:51]} 24. Rd5 {[%clk 0:02:04]}  Qb3 {[%clk 0:01:20]} 25. Ka1 {[%clk 0:01:55]}  Bd8 {[%clk 0:01:06]} 26. Ne3 {[%clk 0:01:50]}  Bb6 {[%clk 0:01:05]} 27. Nf5 {[%clk 0:01:44]}  Rc7 {[%clk 0:01:02]} 28. Rhd1 {[%clk 0:01:35]}  Bc5 {[%clk 0:00:59]} 29. Rxc5 {[%clk 0:00:41]}  dxc5 {[%clk 0:00:50]} 30. fxe5 {[%clk 0:00:40]}  Rcb7 {[%clk 0:00:47]} 31. Rd2 {[%clk 0:00:37]}  g6 {[%clk 0:00:33]} 32. Nd6 {[%clk 0:00:36]}  Re7 {[%clk 0:00:34]} 33. Nxc4 {[%clk 0:00:35]}  Qb5 {[%clk 0:00:32]} 34. g4 {[%clk 0:00:29]}  Qc6 {[%clk 0:00:28]} 35. h4 {[%clk 0:00:28]}  Rd7 {[%clk 0:00:20]} 36. Rd6 {[%clk 0:00:26]}  Rxd6 {[%clk 0:00:18]} 37. exd6 {[%clk 0:00:27]}  Qd7 {[%clk 0:00:18]} 38. h5 {[%clk 0:00:25]}  Qe6 {[%clk 0:00:18]} 39. hxg6 {[%clk 0:00:22]}  hxg6 {[%clk 0:00:18]} 40. e5 {[%clk 0:00:22]}  Kg7 {[%clk 0:00:19]} 41. Qd3 {[%clk 0:00:20]}  Rh8 {[%clk 0:00:14]} 42. Qe4 {[%clk 0:00:18]}  Rh4 {[%clk 0:00:12]} 43. Ne3 {[%clk 0:00:18]}  Rh2 {[%clk 0:00:09]} 44. Nd5 {[%clk 0:00:17]}  Rd2 {[%clk 0:00:09]} 45. c4 {[%clk 0:00:16]}  Rd4 {[%clk 0:00:07]} 46. Qf3 {[%clk 0:00:14]}  Rxc4 {[%clk 0:00:07]} 47. Qf6+ {[%clk 0:00:12]}  Kh6 {[%clk 0:00:03]} 48. Qh4+ {[%clk 0:00:11]}  Kg7 {[%clk 0:00:03]} 49. Qf6+ {[%clk 0:00:11]}  Kh7 {[%clk 0:00:04]} 50. Qxe6 {[%clk 0:00:10]}  fxe6 {[%clk 0:00:03]} 51. d7 {[%clk 0:00:10]}  exd5 {[%clk 0:00:02]} 52. d8=Q {[%clk 0:00:10]}  Rd4 {[%clk 0:00:03]} 53. e6 {[%clk 0:00:10]}  c4 {[%clk 0:00:03]} 54. e7 {[%clk 0:00:10]}  c3 {[%clk 0:00:04]} 55. bxc3 {[%clk 0:00:10]}  Rd1+ {[%clk 0:00:04]} 56. Kb2 {[%clk 0:00:11]}  Rd2+ {[%clk 0:00:05]} 57. Kc1 {[%clk 0:00:11]}  Re2 {[%clk 0:00:05]} 58. e8=Q {[%clk 0:00:11]}  Re1+ {[%clk 0:00:04]} 59. Qxe1 {[%clk 0:00:10]}  g5 {[%clk 0:00:05]} 60. Qee7+ {[%clk 0:00:09]}  Kg6 {[%clk 0:00:06]} 61. Qdd6# {[%clk 0:00:09]} 1-0


[Site "https://www.chess.com"]

[Event "Titled Tuesday Blitz December 27 Early 2022"]
[White "Iljin, Timofey"]
[Black "Vakhlamov, Igor L."]
[WhiteFideId "14110180"]
[BlackFideId "24126748"]
[WhiteElo "2329"]
[BlackElo "2413"]
[Result "0-1"]
[Round "02"]
[TimeControl "180+2"]
[Date "2022.12.27"]
[WhiteClock "0:00:08"]
[BlackClock "0:00:22"]

1. e4 {[%clk 0:02:53]}  c5 {[%clk 0:03:00]} 2. c3 {[%clk 0:02:52]}  g6 {[%clk 0:02:59]} 3. d4 {[%clk 0:02:52]}  cxd4 {[%clk 0:03:00]} 4. cxd4 {[%clk 0:02:53]}  Bg7 {[%clk 0:03:01]} 5. Nf3 {[%clk 0:02:53]}  Nf6 {[%clk 0:03:01]} 6. Nc3 {[%clk 0:02:54]}  O-O {[%clk 0:03:01]} 7. Bc4 {[%clk 0:02:54]}  Nxe4 {[%clk 0:02:57]} 8. Bxf7+ {[%clk 0:02:54]}  Rxf7 {[%clk 0:02:58]} 9. Nxe4 {[%clk 0:02:54]}  d5 {[%clk 0:02:50]} 10. Neg5 {[%clk 0:02:37]}  Rf8 {[%clk 0:02:49]} 11. Qe2 {[%clk 0:02:19]}  Qd6 {[%clk 0:02:25]} 12. Ne5 {[%clk 0:01:50]}  Nc6 {[%clk 0:02:07]} 13. Nxc6 {[%clk 0:01:20]}  bxc6 {[%clk 0:02:08]} 14. h3 {[%clk 0:00:55]}  Bxd4 {[%clk 0:01:47]} 15. Nf3 {[%clk 0:00:48]}  Bg7 {[%clk 0:01:39]} 16. O-O {[%clk 0:00:46]}  e5 {[%clk 0:01:35]} 17. Bd2 {[%clk 0:00:40]}  a5 {[%clk 0:01:29]} 18. Rfc1 {[%clk 0:00:35]}  e4 {[%clk 0:01:25]} 19. Nh2 {[%clk 0:00:13]}  Bxb2 {[%clk 0:01:09]} 20. Bf4 {[%clk 0:00:13]}  Qf6 {[%clk 0:00:58]} 21. Bh6 {[%clk 0:00:04]}  Ba6 {[%clk 0:00:52]} 22. Qd2 {[%clk 0:00:02]}  Bxa1 {[%clk 0:00:49]} 23. Bxf8 {[%clk 0:00:02]}  Rxf8 {[%clk 0:00:50]} 24. Ng4 {[%clk 0:00:02]}  Qg7 {[%clk 0:00:41]} 25. Rxc6 {[%clk 0:00:01]}  Bc4 {[%clk 0:00:37]} 26. Qxa5 {[%clk 0:00:01]}  Bc3 {[%clk 0:00:27]} 27. Rc7 {[%clk 0:00:02]}  Bxa5 {[%clk 0:00:27]} 28. Rxg7+ {[%clk 0:00:02]}  Kxg7 {[%clk 0:00:28]} 29. Ne5 {[%clk 0:00:02]}  Bb6 {[%clk 0:00:27]} 30. Nd7 {[%clk 0:00:01]}  Bxf2+ {[%clk 0:00:27]} 31. Kh2 {[%clk 0:00:01]}  Bxa2 {[%clk 0:00:27]} 32. Ne5 {[%clk 0:00:02]}  Bc5 {[%clk 0:00:26]} 33. Ng4 {[%clk 0:00:02]}  e3 {[%clk 0:00:24]} 34. Nxe3 {[%clk 0:00:01]}  Bxe3 {[%clk 0:00:25]} 35. h4 {[%clk 0:00:02]}  d4 {[%clk 0:00:25]} 36. h5 {[%clk 0:00:03]}  gxh5 {[%clk 0:00:25]} 37. g4 {[%clk 0:00:04]}  d3 {[%clk 0:00:24]} 38. Kg3 {[%clk 0:00:05]}  d2 {[%clk 0:00:24]} 39. gxh5 {[%clk 0:00:06]}  Kh8 {[%clk 0:00:24]} 40. h6 {[%clk 0:00:07]}  d1=Q {[%clk 0:00:23]} 41. Kh4 {[%clk 0:00:07]}  Qh1+ {[%clk 0:00:22]} 42. Kg4 {[%clk 0:00:07]}  Rf4+ {[%clk 0:00:22]} 43. Kg5 {[%clk 0:00:08]}  Qh4# {[%clk 0:00:22]} 0-1


[Site "https://www.chess.com"]

[Event "Titled Tuesday Blitz December 27 Early 2022"]
[White "Itgelt, Khuyagtsogt"]
[Black "Viskelis, Darius"]
[WhiteFideId "4902912"]
[BlackFideId "12800830"]
[WhiteElo "2261"]
[BlackElo "2166"]
[Result "1-0"]
[Round "02"]
[TimeControl "180+2"]
[Date "2022.12.27"]
[WhiteClock "0:02:00"]
[BlackClock "0:00:02"]

1. Nf3 {[%clk 0:03:00]}  d5 {[%clk 0:02:59]} 2. d4 {[%clk 0:03:01]}  Nf6 {[%clk 0:02:53]} 3. Bf4 {[%clk 0:03:01]}  Bf5 {[%clk 0:02:53]} 4. e3 {[%clk 0:03:02]}  e6 {[%clk 0:02:53]} 5. Bd3 {[%clk 0:03:02]}  Bxd3 {[%clk 0:02:50]} 6. Qxd3 {[%clk 0:03:03]}  Bd6 {[%clk 0:02:50]} 7. Bg3 {[%clk 0:03:03]}  O-O {[%clk 0:02:50]} 8. Nbd2 {[%clk 0:03:02]}  c5 {[%clk 0:02:49]} 9. c3 {[%clk 0:03:02]}  Nc6 {[%clk 0:02:49]} 10. O-O {[%clk 0:03:01]}  Bxg3 {[%clk 0:02:48]} 11. hxg3 {[%clk 0:03:02]}  Re8 {[%clk 0:02:48]} 12. Rfe1 {[%clk 0:03:02]}  e5 {[%clk 0:02:42]} 13. dxe5 {[%clk 0:03:02]}  Nxe5 {[%clk 0:02:42]} 14. Nxe5 {[%clk 0:03:03]}  Rxe5 {[%clk 0:02:42]} 15. Nf3 {[%clk 0:03:04]}  Re6 {[%clk 0:02:35]} 16. c4 {[%clk 0:03:04]}  dxc4 {[%clk 0:02:26]} 17. Qxc4 {[%clk 0:03:05]}  Qe7 {[%clk 0:02:14]} 18. Red1 {[%clk 0:03:04]}  b6 {[%clk 0:02:09]} 19. Ng5 {[%clk 0:03:02]}  Re5 {[%clk 0:02:03]} 20. Nf3 {[%clk 0:02:59]}  Re4 {[%clk 0:02:02]} 21. Qa6 {[%clk 0:02:55]}  Ng4 {[%clk 0:01:30]} 22. Rd2 {[%clk 0:02:51]}  Rxe3 {[%clk 0:01:12]} 23. fxe3 {[%clk 0:02:51]}  Qxe3+ {[%clk 0:01:12]} 24. Kf1 {[%clk 0:02:51]}  Nh2+ {[%clk 0:01:01]} 25. Nxh2 {[%clk 0:02:51]}  Qxd2 {[%clk 0:01:02]} 26. Qe2 {[%clk 0:02:51]}  Qg5 {[%clk 0:00:54]} 27. Re1 {[%clk 0:02:39]}  h5 {[%clk 0:00:52]} 28. Qe5 {[%clk 0:02:33]}  Qd2 {[%clk 0:00:40]} 29. Nf3 {[%clk 0:02:32]}  Qd3+ {[%clk 0:00:37]} 30. Qe2 {[%clk 0:02:32]}  Qd6 {[%clk 0:00:27]} 31. Kf2 {[%clk 0:02:30]}  Rd8 {[%clk 0:00:26]} 32. b3 {[%clk 0:02:30]}  g6 {[%clk 0:00:26]} 33. Qe3 {[%clk 0:02:22]}  Qd5 {[%clk 0:00:21]} 34. Re2 {[%clk 0:02:21]}  Qd6 {[%clk 0:00:20]} 35. a4 {[%clk 0:02:19]}  Qf6 {[%clk 0:00:19]} 36. Kg1 {[%clk 0:02:15]}  Rd1+ {[%clk 0:00:19]} 37. Kh2 {[%clk 0:02:15]}  Qa1 {[%clk 0:00:18]} 38. Qe8+ {[%clk 0:02:03]}  Kg7 {[%clk 0:00:15]} 39. Qe5+ {[%clk 0:02:03]}  Qxe5 {[%clk 0:00:15]} 40. Nxe5 {[%clk 0:02:04]}  Rb1 {[%clk 0:00:14]} 41. Re3 {[%clk 0:02:04]}  Rb2 {[%clk 0:00:13]} 42. Nc6 {[%clk 0:02:03]}  a5 {[%clk 0:00:12]} 43. Ne5 {[%clk 0:02:01]}  f6 {[%clk 0:00:10]} 44. Nc4 {[%clk 0:02:01]}  g5 {[%clk 0:00:08]} 45. Nxb2 {[%clk 0:02:01]}  c4 {[%clk 0:00:02]} 46. Nxc4 {[%clk 0:02:00]} 1-0


[Site "https://www.chess.com"]

[Event "Titled Tuesday Blitz December 27 Early 2022"]
[White "Johnson, Ben"]
[Black "Ramirez Vido, Robert Yorisan"]
[WhiteFideId "2010917"]
[BlackFideId "3513823"]
[WhiteElo "1961"]
[BlackElo "2015"]
[Result "0-1"]
[Round "02"]
[TimeControl "180+2"]
[Date "2022.12.27"]
[WhiteClock "0:00:02"]
[BlackClock "0:00:04"]

1. e4 {[%clk 0:02:55]}  c5 {[%clk 0:03:00]} 2. Nf3 {[%clk 0:02:53]}  Nc6 {[%clk 0:03:00]} 3. c3 {[%clk 0:02:51]}  d5 {[%clk 0:02:59]} 4. exd5 {[%clk 0:02:51]}  Qxd5 {[%clk 0:03:00]} 5. d4 {[%clk 0:02:52]}  cxd4 {[%clk 0:03:01]} 6. cxd4 {[%clk 0:02:52]}  Bg4 {[%clk 0:03:00]} 7. Be2 {[%clk 0:02:52]}  Nf6 {[%clk 0:02:57]} 8. Nc3 {[%clk 0:02:52]}  Qa5 {[%clk 0:02:56]} 9. d5 {[%clk 0:02:45]}  Bxf3 {[%clk 0:02:44]} 10. Bxf3 {[%clk 0:02:43]}  Ne5 {[%clk 0:02:45]} 11. O-O {[%clk 0:02:40]}  g6 {[%clk 0:02:41]} 12. Bf4 {[%clk 0:02:37]}  Nxf3+ {[%clk 0:02:39]} 13. Qxf3 {[%clk 0:02:37]}  Bg7 {[%clk 0:02:40]} 14. Rfe1 {[%clk 0:02:36]}  O-O {[%clk 0:02:26]} 15. Rxe7 {[%clk 0:02:23]}  Qb4 {[%clk 0:02:27]} 16. Re2 {[%clk 0:02:12]}  Rfd8 {[%clk 0:02:17]} 17. Rd1 {[%clk 0:02:04]}  Rd7 {[%clk 0:02:03]} 18. h3 {[%clk 0:01:55]}  Rad8 {[%clk 0:02:03]} 19. Be5 {[%clk 0:01:35]}  Nh5 {[%clk 0:01:51]} 20. Bxg7 {[%clk 0:01:31]}  Nxg7 {[%clk 0:01:52]} 21. a3 {[%clk 0:01:19]}  Qb3 {[%clk 0:01:38]} 22. Rde1 {[%clk 0:01:19]}  Nf5 {[%clk 0:01:34]} 23. g4 {[%clk 0:01:13]}  Nd4 {[%clk 0:01:26]} 24. Re8+ {[%clk 0:01:13]}  Kg7 {[%clk 0:01:25]} 25. Qd3 {[%clk 0:00:43]}  Rxd5 {[%clk 0:01:02]} 26. Rxd8 {[%clk 0:00:40]}  Rxd8 {[%clk 0:01:03]} 27. Re4 {[%clk 0:00:32]}  Ne6 {[%clk 0:00:55]} 28. Qg3 {[%clk 0:00:27]}  Qxb2 {[%clk 0:00:51]} 29. Qe5+ {[%clk 0:00:26]}  Kg8 {[%clk 0:00:51]} 30. h4 {[%clk 0:00:23]}  Rc8 {[%clk 0:00:39]} 31. Re3 {[%clk 0:00:20]}  Qc1+ {[%clk 0:00:34]} 32. Kg2 {[%clk 0:00:18]}  Qb2 {[%clk 0:00:28]} 33. h5 {[%clk 0:00:16]}  Rc5 {[%clk 0:00:23]} 34. Qf6 {[%clk 0:00:11]}  Qb6 {[%clk 0:00:16]} 35. h6 {[%clk 0:00:08]}  Qc6+ {[%clk 0:00:15]} 36. Kh2 {[%clk 0:00:05]}  Qc7+ {[%clk 0:00:14]} 37. Kg1 {[%clk 0:00:05]}  Rc6 {[%clk 0:00:12]} 38. Rxe6 {[%clk 0:00:04]}  fxe6 {[%clk 0:00:13]} 39. Ne4 {[%clk 0:00:03]}  Rc1+ {[%clk 0:00:12]} 40. Kg2 {[%clk 0:00:03]}  Rd1 {[%clk 0:00:06]} 41. Qxe6+ {[%clk 0:00:02]}  Qf7 {[%clk 0:00:05]} 42. Qc8+ {[%clk 0:00:02]}  Qf8 {[%clk 0:00:04]} 0-1


[Site "https://www.chess.com"]

[Event "Titled Tuesday Blitz December 27 Early 2022"]
[White "Kabanov, Nikolai"]
[Black "Almeida Junior, Alvaro Alves de"]
[WhiteFideId "4127820"]
[BlackFideId "2149974"]
[WhiteElo "2429"]
[BlackElo "2062"]
[Result "1-0"]
[Round "02"]
[TimeControl "180+2"]
[Date "2022.12.27"]
[WhiteClock "0:00:11"]
[BlackClock "0:00:04"]

1. e4 {[%clk 0:02:59]}  c5 {[%clk 0:02:58]} 2. Nf3 {[%clk 0:02:59]}  d6 {[%clk 0:02:59]} 3. d4 {[%clk 0:02:58]}  cxd4 {[%clk 0:03:00]} 4. Nxd4 {[%clk 0:02:58]}  Nf6 {[%clk 0:03:00]} 5. Nc3 {[%clk 0:02:58]}  a6 {[%clk 0:03:01]} 6. Be2 {[%clk 0:02:58]}  e5 {[%clk 0:03:01]} 7. Nb3 {[%clk 0:02:58]}  Be6 {[%clk 0:03:01]} 8. O-O {[%clk 0:02:58]}  Be7 {[%clk 0:03:02]} 9. Qd3 {[%clk 0:02:58]}  Nbd7 {[%clk 0:02:59]} 10. Bd2 {[%clk 0:02:50]}  Rc8 {[%clk 0:02:58]} 11. Nd5 {[%clk 0:02:48]}  Bxd5 {[%clk 0:02:52]} 12. exd5 {[%clk 0:02:48]}  Qc7 {[%clk 0:02:44]} 13. Rfc1 {[%clk 0:02:29]}  b5 {[%clk 0:02:41]} 14. a4 {[%clk 0:02:16]}  bxa4 {[%clk 0:02:20]} 15. Rxa4 {[%clk 0:02:17]}  O-O {[%clk 0:02:20]} 16. Rxa6 {[%clk 0:02:14]}  Qb7 {[%clk 0:02:14]} 17. Na5 {[%clk 0:01:42]}  Qxb2 {[%clk 0:02:12]} 18. Nc6 {[%clk 0:01:40]}  Rfe8 {[%clk 0:02:06]} 19. Ra7 {[%clk 0:01:35]}  Bf8 {[%clk 0:01:58]} 20. c4 {[%clk 0:01:29]}  Nc5 {[%clk 0:01:41]} 21. Qc2 {[%clk 0:01:22]}  Qxc2 {[%clk 0:01:00]} 22. Rxc2 {[%clk 0:01:23]}  Ra8 {[%clk 0:00:41]} 23. Rca2 {[%clk 0:01:23]}  Rxa7 {[%clk 0:00:37]} 24. Rxa7 {[%clk 0:01:24]}  Nb3 {[%clk 0:00:37]} 25. Be3 {[%clk 0:01:19]}  Ne4 {[%clk 0:00:36]} 26. Bg4 {[%clk 0:01:12]}  Nbc5 {[%clk 0:00:31]} 27. f3 {[%clk 0:01:09]}  Nf6 {[%clk 0:00:31]} 28. Bh3 {[%clk 0:01:05]}  Nd3 {[%clk 0:00:25]} 29. Kf1 {[%clk 0:00:54]}  Nb2 {[%clk 0:00:26]} 30. Na5 {[%clk 0:00:49]}  Rb8 {[%clk 0:00:26]} 31. Ke2 {[%clk 0:00:43]}  Rb4 {[%clk 0:00:26]} 32. Bd2 {[%clk 0:00:40]}  Ra4 {[%clk 0:00:23]} 33. Rc7 {[%clk 0:00:35]}  g6 {[%clk 0:00:18]} 34. Rc8 {[%clk 0:00:34]}  Kg7 {[%clk 0:00:16]} 35. Bc3 {[%clk 0:00:32]}  Ra2 {[%clk 0:00:15]} 36. Bxb2 {[%clk 0:00:23]}  Rxb2+ {[%clk 0:00:16]} 37. Kd3 {[%clk 0:00:23]}  Be7 {[%clk 0:00:14]} 38. Nc6 {[%clk 0:00:22]}  Bf8 {[%clk 0:00:14]} 39. Rc7 {[%clk 0:00:22]}  Nh5 {[%clk 0:00:12]} 40. g3 {[%clk 0:00:20]}  Rxh2 {[%clk 0:00:12]} 41. Be6 {[%clk 0:00:21]}  Kh6 {[%clk 0:00:04]} 42. Rxf7 {[%clk 0:00:21]}  Bg7 {[%clk 0:00:04]} 43. c5 {[%clk 0:00:20]}  dxc5 {[%clk 0:00:04]} 44. d6 {[%clk 0:00:20]}  Rh1 {[%clk 0:00:04]} 45. Kc2 {[%clk 0:00:19]}  Rh2+ {[%clk 0:00:03]} 46. Kd3 {[%clk 0:00:19]}  Rh1 {[%clk 0:00:03]} 47. d7 {[%clk 0:00:19]}  Rd1+ {[%clk 0:00:01]} 48. Kc4 {[%clk 0:00:19]}  Rd6 {[%clk 0:00:02]} 49. d8=Q {[%clk 0:00:18]}  Rxd8 {[%clk 0:00:01]} 50. Nxd8 {[%clk 0:00:19]}  e4 {[%clk 0:00:01]} 51. fxe4 {[%clk 0:00:19]}  Nf6 {[%clk 0:00:02]} 52. Bd5 {[%clk 0:00:18]}  Ne8 {[%clk 0:00:02]} 53. Ne6 {[%clk 0:00:17]}  Nd6+ {[%clk 0:00:02]} 54. Kxc5 {[%clk 0:00:16]}  Nxf7 {[%clk 0:00:03]} 55. Nxg7 {[%clk 0:00:15]}  Ne5 {[%clk 0:00:04]} 56. Ne6 {[%clk 0:00:14]}  Nd3+ {[%clk 0:00:04]} 57. Kd6 {[%clk 0:00:12]}  Nf2 {[%clk 0:00:05]} 58. e5 {[%clk 0:00:12]}  g5 {[%clk 0:00:04]} 59. Nd4 {[%clk 0:00:11]}  Kg6 {[%clk 0:00:04]} 60. e6 {[%clk 0:00:11]}  Kf6 {[%clk 0:00:04]} 61. e7 {[%clk 0:00:11]} 1-0


[Site "https://www.chess.com"]

[Event "Titled Tuesday Blitz December 27 Early 2022"]
[White "Kalashian, David"]
[Black "Levitan, Caleb Levi"]
[WhiteFideId "13302418"]
[BlackFideId "14332620"]
[WhiteElo "2398"]
[BlackElo "2129"]
[Result "0-1"]
[Round "02"]
[TimeControl "180+2"]
[Date "2022.12.27"]
[WhiteClock "0:01:42"]
[BlackClock "0:00:20"]

1. d4 {[%clk 0:02:59]}  Nf6 {[%clk 0:02:59]} 2. c4 {[%clk 0:02:59]}  e6 {[%clk 0:02:58]} 3. Nf3 {[%clk 0:02:58]}  d5 {[%clk 0:02:50]} 4. Nc3 {[%clk 0:02:57]}  Bb4 {[%clk 0:02:49]} 5. Bg5 {[%clk 0:02:56]}  c6 {[%clk 0:02:13]} 6. Bxf6 {[%clk 0:02:50]}  Qxf6 {[%clk 0:02:12]} 7. e3 {[%clk 0:02:50]}  O-O {[%clk 0:02:08]} 8. Bd3 {[%clk 0:02:50]}  Nd7 {[%clk 0:01:58]} 9. O-O {[%clk 0:02:48]}  e5 {[%clk 0:01:13]} 10. cxd5 {[%clk 0:02:43]}  Bxc3 {[%clk 0:01:11]} 11. dxc6 {[%clk 0:02:37]}  Qxc6 {[%clk 0:01:03]} 12. bxc3 {[%clk 0:02:36]}  e4 {[%clk 0:01:03]} 13. Ng5 {[%clk 0:02:09]}  exd3 {[%clk 0:00:59]} 14. Qxd3 {[%clk 0:02:10]}  Qg6 {[%clk 0:00:57]} 15. Qxg6 {[%clk 0:02:03]}  hxg6 {[%clk 0:00:57]} 16. Ne4 {[%clk 0:02:03]}  Nf6 {[%clk 0:00:47]} 17. Nxf6+ {[%clk 0:02:00]}  gxf6 {[%clk 0:00:47]} 18. c4 {[%clk 0:02:01]}  Bd7 {[%clk 0:00:44]} 19. a4 {[%clk 0:01:56]}  Rac8 {[%clk 0:00:43]} 20. Rfc1 {[%clk 0:01:55]}  Rc7 {[%clk 0:00:40]} 21. a5 {[%clk 0:01:53]}  Rfc8 {[%clk 0:00:32]} 22. c5 {[%clk 0:01:52]}  b6 {[%clk 0:00:26]} 23. axb6 {[%clk 0:01:50]}  axb6 {[%clk 0:00:26]} 24. Rd1 {[%clk 0:01:46]}  bxc5 {[%clk 0:00:21]} 25. dxc5 {[%clk 0:01:47]}  Be6 {[%clk 0:00:21]} 26. h3 {[%clk 0:01:42]}  Rxc5 {[%clk 0:00:21]} 27. Ra4 {[%clk 0:01:42]}  Bb3 {[%clk 0:00:20]} 0-1


[Site "https://www.chess.com"]